fUST/lending_fUST_20260105
["ID","MTS","AMOUNT","RATE_DAILY","PERIOD"]
[400431988,1767548556844,5800.67823375,0.000301,120]
[400431989,1767548561903,1752.07043021,0.00010067,2]
[400431990,1767548562760,500.0,0.00010066,2]
[400431991,1767548562810,500.0,0.00010066,2]
[400431992,1767548562974,50.28140693,0.00010066,2]
[400431993,1767548562998,449.71859307,0.00010066,2]
[400431994,1767548563040,250.0,0.00010066,2]
[400431995,1767548563120,500.0,0.00010066,2]
[400431997,1767548569837,5000.0,0.00010067,2]
[400431998,1767548580119,500.0,0.00010066,2]
[400431999,1767548580184,500.0,0.00010066,2]
[400432000,1767548580239,500.0,0.00010066,2]
[400432001,1767548580327,271.43300891,0.00010066,2]
[400432002,1767548582353,300.0,0.00010066,2]
[400432003,1767548585175,500.0,0.00010066,2]
[400432004,1767548585232,263.11466933,0.00010066,2]
[400432005,1767548585372,450.0,8.269e-05,2]
[400432006,1767548585786,515.74372869,8.663e-05,2]
[400432007,1767548601262,-436.9597357,8.576e-05,2]
[400432009,1767548605545,-286.83516312,8.576e-05,2]
[400432015,1767548606935,-389.26648569,8.576e-05,2]
[400432016,1767548608547,-238.88394758,8.576e-05,2]
[400432017,1767548610062,-3648.05466791,8.576e-05,2]
[400432018,1767548610091,-384.25627131,8.663e-05,2]
[400432019,1767548610136,-585.39812156,9.057e-05,2]
[400432020,1767548611239,-337.2837583,9.057e-05,2]
[400432021,1767548615148,-293.98603582,9.057e-05,2]
[400432022,1767548620377,-5000.0,8.966e-05,2]
[400432023,1767548631247,-133.32208432,9.057e-05,2]
[400432024,1767548631271,-131.42383441,9.236e-05,2]
[400432025,1767548632717,-148.98674836,9.236e-05,2]
[400432026,1767548632741,-47.85617622,9.451e-05,2]
[400432027,1767548637067,-376.74613756,9.451e-05,2]
[400432028,1767548638516,-155.11869083,9.451e-05,2]
[400432029,1767548640708,-159.60852648,9.451e-05,2]
[400432030,1767548642896,-203.63,9.356e-05,2]
[400432031,1767548645014,-335.56525831,9.356e-05,2]
[400432032,1767548647034,-489.98140847,9.356e-05,2]
[400432034,1767548648509,-3970.82333322,9.356e-05,2]
[400432035,1767548648540,-997.70286465,9.451e-05,2]
[400432036,1767548648594,-62.95760426,9.451e-05,2]
[400432037,1767548650648,-198.0,9.763e-05,2]
[400432038,1767548650672,-43.56786233,9.764e-05,2]
[400432039,1767548666575,392.73,6.972e-05,2]
[400432040,1767548667010,785.45,7.304e-05,2]
[400432041,1767548667437,1178.18,7.636e-05,2]
[400432042,1767548668201,1570.9,7.968e-05,2]
[400432044,1767548668589,1963.63,8.3e-05,2]
[400432045,1767548668620,-200.48755087,9.666e-05,2]
[400432046,1767548668979,2356.35,8.632e-05,2]
[400432047,1767548669381,1752.77,8.964e-05,2]
[400432048,1767548669407,996.31,8.964e-05,2]
[400432049,1767548669768,3141.8,9.296e-05,2]
[400432050,1767548670621,-3534.53,9.628e-05,2]
[400432051,1767548670758,-310.90151609,9.666e-05,2]
[400432052,1767548670807,-4488.61093304,9.666e-05,2]
[400432053,1767548670983,-3881.07916369,9.764e-05,2]
[400432054,1767548673771,-284.60954744,9.876e-05,2]
[400432055,1767548677025,-200.12659503,9.876e-05,2]
[400432056,1767548680631,-300.0,9.876e-05,2]
[400432057,1767548683592,-151.06853535,9.876e-05,2]
[400432058,1767548687594,-184.71601092,9.876e-05,2]
[400432059,1767548687975,1331.96,9.764e-05,2]
[400432060,1767548705064,-3927.25,9.96e-05,2]
[400432061,1767548711800,2145.51,9.96e-05,2]
[400432062,1767548711825,2854.49,9.96e-05,2]
[400432065,1767548745137,395.69,7.909e-05,2]
[400432066,1767548745629,791.38,8.286e-05,2]
[400432067,1767548746080,1187.07,8.663e-05,2]
[400432068,1767548746480,1582.76,9.039e-05,2]
[400432069,1767548747080,1978.45,9.416e-05,2]
[400432070,1767548747289,2374.14,9.793e-05,2]
[400432071,1767548748589,986.80790288,9.972e-05,2]
[400432072,1767548757848,703.71209712,9.99e-05,2]
[400432073,1767548757872,4296.28790288,9.99e-05,2]
[400432074,1767548762885,250.42936338,9.895e-05,2]
[400432075,1767548781059,5000.0,9.99e-05,2]
[400432076,1767548788529,453.29273374,9.764e-05,2]
[400432077,1767548788552,2795.75224866,9.764e-05,2]
[400432079,1767548797655,1296.92083532,9.856e-05,2]
[400432080,1767548800833,5187.68334129,9.856e-05,2]
[400432081,1767548804517,719.65357473,9.99e-05,2]
[400432082,1767548804542,4280.34642527,9.99e-05,2]
[400432083,1767548806932,302.48753779,9.86e-05,2]
[400432084,1767548823231,427.14,7.821e-05,2]
[400432085,1767548823634,854.27,8.193e-05,2]
[400432086,1767548824099,1281.41,8.565e-05,2]
[400432087,1767548824504,1708.55,8.938e-05,2]
[400432088,1767548824917,1145.80603694,9.31e-05,2]
[400432089,1767548824941,989.87396306,9.31e-05,2]
[400432090,1767548825316,2562.82,9.683e-05,2]
[400432091,1767548827533,5000.0,9.99e-05,2]
[400432092,1767548851453,1447.31603694,9.99e-05,2]
[400432093,1767548851478,3552.68396306,9.99e-05,2]
[400432138,1767548875028,5000.0,9.99e-05,2]
[400432154,1767548898179,1447.32603694,9.99e-05,2]
[400432155,1767548898209,2891.50143664,9.99e-05,2]
[400432156,1767548901316,563.22,7.872e-05,2]
[400432157,1767548901735,1126.44,8.246e-05,2]
[400432158,1767548901900,1689.65,8.621e-05,2]
[400432159,1767548902299,2252.87,8.996e-05,2]
[400432160,1767548902719,1476.32856336,9.371e-05,2]
[400432161,1767548902741,1339.76143664,9.371e-05,2]
[400432162,1767548903155,3379.31,9.746e-05,2]
[400432163,1767548906757,687.46758998,9.856e-05,2]
[400432164,1767548909351,2749.87035993,9.856e-05,2]
[400432168,1767548912097,1843.60061345,9.856e-05,2]
[400432169,1767548912120,4343.6076964,9.856e-05,2]
[400432170,1767548945603,5000.0,9.99e-05,2]
[400432172,1767548968767,656.4023036,9.99e-05,2]
[400432173,1767548968791,418.33457007,9.99e-05,2]
[400432174,1767548979195,611.99,7.37e-05,2]
[400432175,1767548979635,1223.98,7.721e-05,2]
[400432176,1767548980044,1835.97,8.072e-05,2]
[400432177,1767548980480,2447.96,8.423e-05,2]
[400432178,1767548980875,3059.94,8.774e-05,2]
[400432179,1767548981258,401.83542993,9.125e-05,2]
[400432180,1767548981281,3270.09457007,9.125e-05,2]
[400432181,1767548981656,4283.92,9.476e-05,2]
[400432182,1767548982089,2445.99542993,9.827e-05,2]
[400432183,1767548982113,2449.91457007,9.827e-05,2]
[400432184,1767549015725,5000.0,9.99e-05,2]
[400432187,1767549025328,155.0,8.3e-07,2]
[400432188,1767549026371,155.0,8.3e-07,2]
[400432189,1767549027417,155.0,8.3e-07,2]
[400432202,1767549031681,-595.0,0.0001,2]
[400432203,1767549031691,-560.0,0.0001,2]
[400432204,1767549031701,-365.2304542,0.00010031,2]
[400432205,1767549031711,-151.0,0.00010061,2]
[400432206,1767549031720,-300.0,0.00010062,2]
[400432207,1767549031730,-300.0,0.00010062,2]
[400432208,1767549031741,-1200.0,0.00010062,2]
[400432209,1767549031752,-300.0,0.00010062,2]
[400432210,1767549031762,-3194.28854394,0.00010063,2]
[400432211,1767549031773,-68834.04177436,0.00010067,2]
[400432212,1767549032699,207.44695063,9.9e-05,2]
[400432233,1767549038778,1877.6484793,9.99e-05,2]
[400432234,1767549038805,3122.3515207,9.99e-05,2]
[400432237,1767549039988,-300.0,0.00010067,2]
[400432238,1767549040000,-915.56306572,0.00010067,2]
[400432239,1767549040474,-3e-08,0.00010067,2]
[400432245,1767549044894,-453.0,0.00010067,2]
[400432247,1767549044905,-400.0,0.00010067,2]
[400432253,1767549047585,-1340.22142741,0.00010067,2]
[400432264,1767549057110,340.53,7.104e-05,2]
[400432265,1767549057535,681.06,7.442e-05,2]
[400432266,1767549057930,1021.59,7.78e-05,2]
[400432267,1767549058333,1362.12,8.119e-05,2]
[400432268,1767549058716,1702.65,8.457e-05,2]
[400432269,1767549059113,1769.7084793,8.795e-05,2]
[400432270,1767549059136,273.4715207,8.795e-05,2]
[400432271,1767549059535,2383.71,9.134e-05,2]
[400432272,1767549059937,2724.24,9.472e-05,2]
[400432273,1767549060801,3064.77,9.81e-05,2]
[400432277,1767549089937,167.8677078,9.856e-05,2]
[400432283,1767549103960,254.171,9.866e-05,2]
[400432287,1767549134048,168.09,7.116e-05,2]
[400432288,1767549134463,336.19,7.455e-05,2]
[400432289,1767549135322,504.28,7.794e-05,2]
[400432290,1767549135738,123.2197715,8.133e-05,2]
[400432291,1767549135762,549.1602285,8.133e-05,2]
[400432292,1767549136184,840.47,8.472e-05,2]
[400432293,1767549136568,1008.57,8.811e-05,2]
[400432294,1767549137012,1176.66,9.149e-05,2]
[400432295,1767549137432,1344.76,9.488e-05,2]
[400432296,1767549138024,1512.85,9.827e-05,2]
[400432298,1767549205840,645.57552817,9.856e-05,2]
[400432299,1767549211866,221.56,8.185e-05,2]
[400432300,1767549212288,295.42,8.541e-05,2]
[400432301,1767549212701,369.27,8.897e-05,2]
[400432302,1767549213085,443.13,9.253e-05,2]
[400432303,1767549213487,516.98,9.609e-05,2]
[400432304,1767549213903,590.84,9.965e-05,2]
[400432305,1767549214192,484.76424333,9.19e-05,2]
[400432306,1767549214215,272.89300833,9.19e-05,2]
[400432309,1767549285851,171.34,9.138e-05,2]
[400432310,1767549286272,214.18,9.519e-05,2]
[400432311,1767549286710,257.02,9.9e-05,2]
[400432312,1767549289354,5000.0,9.99e-05,2]
[400432313,1767549312875,4084.57699167,9.99e-05,2]
[400432314,1767549312898,915.42300833,9.99e-05,2]
[400432315,1767549315018,500.0,0.00030136,120]
[400432316,1767549315273,500.0,0.00030136,120]
[400432317,1767549315514,500.0,0.00030136,120]
[400432318,1767549315750,500.0,0.00030136,120]
[400432319,1767549315993,500.0,0.00030136,120]
[400432320,1767549316228,498.24363912,0.00030136,120]
[400432321,1767549317177,500.0,0.00030136,120]
[400432322,1767549317434,500.0,0.00030136,120]
[400432323,1767549317672,500.0,0.00030136,120]
[400432324,1767549317917,500.0,0.00030136,120]
[400432325,1767549317986,500.0,0.00030136,120]
[400432326,1767549318172,180.34264627,0.00030136,120]
[400432327,1767549318207,500.0,0.00030136,120]
[400432328,1767549318442,500.0,0.00030136,120]
[400432329,1767549318828,387.48,0.00030136,120]
[400432330,1767549322336,500.0,0.00030136,120]
[400432331,1767549322488,500.0,0.00030136,120]
[400432332,1767549322734,500.0,0.00030136,120]
[400432333,1767549322978,500.0,0.00030136,120]
[400432334,1767549323219,500.0,0.00030136,120]
[400432335,1767549323487,153.53892268,0.00030136,120]
[400432336,1767549326790,500.0,0.00030136,120]
[400432337,1767549327043,500.0,0.00030136,120]
[400432338,1767549327278,500.0,0.00030136,120]
[400432339,1767549327519,500.0,0.00030136,120]
[400432341,1767549327750,338.30897197,0.00030136,120]
[400432342,1767549330586,500.0,0.00030136,120]
[400432343,1767549330824,500.0,0.00030136,120]
[400432344,1767549331063,414.39669368,0.00030136,120]
[400432345,1767549333799,500.0,0.00030136,120]
[400432346,1767549334052,500.0,0.00030136,120]
[400432347,1767549334283,500.0,0.00030136,120]
[400432348,1767549334532,500.0,0.00030136,120]
[400432349,1767549334770,184.09188713,0.00030136,120]
[400432350,1767549334987,500.0,0.00030136,120]
[400432351,1767549335230,417.62157916,0.00030136,120]
[400432352,1767549336990,500.0,0.00030136,120]
[400432353,1767549337252,312.34540843,0.00030136,120]
[400432354,1767549347295,514.76072551,0.00030136,120]
[400432355,1767549350126,500.0,0.00030136,120]
[400432356,1767549350776,417.28599456,0.00030136,120]
[400432357,1767549352674,568.30476871,0.00030136,120]
[400432358,1767549353206,557.20784551,0.00030136,120]
[400432359,1767549356737,159.45,7.774e-05,2]
[400432360,1767549357216,212.6,8.112e-05,2]
[400432361,1767549357615,265.75,8.45e-05,2]
[400432362,1767549357998,318.89,8.788e-05,2]
[400432363,1767549358464,372.04,9.126e-05,2]
[400432364,1767549358759,500.0,0.00030136,120]
[400432365,1767549358871,425.19,9.464e-05,2]
[400432366,1767549359018,500.0,0.00030136,120]
[400432367,1767549359294,229.29941236,0.00030136,120]
[400432368,1767549359323,478.34,9.802e-05,2]
[400432369,1767549359528,500.0,0.00030136,120]
[400432370,1767549359786,341.68958243,0.00030136,120]
[400432371,1767549361188,500.0,0.00030136,120]
[400432372,1767549361437,500.0,0.00030136,120]
[400432373,1767549361673,500.0,0.00030136,120]
[400432374,1767549361907,498.36013281,0.00030136,120]
[400432375,1767549370431,500.0,0.00030136,120]
[400432376,1767549370664,500.0,0.00030136,120]
[400432377,1767549370898,500.0,0.00030136,120]
[400432378,1767549371101,500.0,0.00030136,120]
[400432379,1767549371136,500.0,0.00030136,120]
[400432380,1767549371337,500.0,0.00030136,120]
[400432381,1767549371377,500.0,0.00030136,120]
[400432382,1767549371613,500.0,0.00030136,120]
[400432383,1767549371743,500.0,0.00030136,120]
[400432384,1767549371854,500.0,0.00030136,120]
[400432385,1767549371953,500.0,0.00030136,120]
[400432386,1767549371985,292.32833097,0.00030136,120]
[400432387,1767549372097,500.0,0.00030136,120]
[400432388,1767549372335,500.0,0.00030136,120]
[400432389,1767549372597,500.0,0.00030136,120]
[400432390,1767549372648,500.0,0.00030136,120]
[400432391,1767549372896,500.0,0.00030136,120]
[400432392,1767549372927,500.0,0.00030136,120]
[400432393,1767549373133,500.0,0.00030136,120]
[400432394,1767549373293,500.0,0.00030136,120]
[400432395,1767549373369,500.0,0.00030136,120]
[400432396,1767549373750,262.43336068,0.00030136,120]
[400432397,1767549373792,500.0,0.00030136,120]
[400432398,1767549373911,165.01096004,0.00030136,120]
[400432399,1767549375454,590.38305544,0.00030136,120]
[400432400,1767549375688,500.0,0.00030136,120]
[400432401,1767549375948,500.0,0.00030136,120]
[400432402,1767549376213,500.0,0.00030136,120]
[400432403,1767549377331,586.21498055,0.00030136,120]
[400432404,1767549377563,500.0,0.00030136,120]
[400432405,1767549377844,500.0,0.00030136,120]
[400432406,1767549378078,188.79040864,0.00030136,120]
[400432407,1767549378808,500.0,0.00030136,120]
[400432408,1767549379048,500.0,0.00030136,120]
[400432409,1767549379415,500.0,0.00030136,120]
[400432410,1767549379451,170.42979164,0.00030136,120]
[400432411,1767549379590,551.12337061,0.00030136,120]
[400432412,1767549380187,511.11993933,0.00030136,120]
[400432413,1767549382624,500.0,0.00030136,120]
[400432414,1767549382898,500.0,0.00030136,120]
[400432415,1767549383153,500.0,0.00030136,120]
[400432416,1767549383425,300.86313194,0.00030136,120]
[400432417,1767549384058,500.0,0.00030136,120]
[400432418,1767549384365,500.0,0.00030136,120]
[400432419,1767549384962,231.13812863,0.00030136,120]
[400432420,1767549385173,344.82415608,0.00030136,120]
[400432421,1767549386819,498.33524231,0.00030136,120]
[400432422,1767549388287,500.0,0.00030136,120]
[400432423,1767549388564,500.0,0.00030136,120]
[400432424,1767549388805,500.0,0.00030136,120]
[400432425,1767549389066,500.0,0.00030136,120]
[400432426,1767549389297,500.0,0.00030136,120]
[400432427,1767549389552,500.0,0.00030136,120]
[400432428,1767549389823,500.0,0.00030136,120]
[400432429,1767549390061,500.0,0.00030136,120]
[400432430,1767549390306,500.0,0.00030136,120]
[400432431,1767549390578,500.0,0.00030136,120]
[400432432,1767549390815,500.0,0.00030136,120]
[400432433,1767549391061,500.0,0.00030136,120]
[400432434,1767549391514,500.0,0.00030136,120]
[400432435,1767549391728,500.0,0.00030136,120]
[400432436,1767549391800,500.0,0.00030136,120]
[400432437,1767549392057,500.0,0.00030136,120]
[400432438,1767549392282,500.0,0.00030136,120]
[400432439,1767549392585,269.77924302,0.00030136,120]
[400432440,1767549393542,566.21,0.00030136,120]
[400432441,1767549393786,566.21,0.00030136,120]
[400432442,1767549394197,566.21,0.00030136,120]
[400432443,1767549394264,566.21,0.00030136,120]
[400432444,1767549394528,566.21,0.00030136,120]
[400432445,1767549394767,566.21,0.00030136,120]
[400432446,1767549394798,500.0,0.00030136,120]
[400432447,1767549394994,566.21,0.00030136,120]
[400432448,1767549395026,500.0,0.00030136,120]
[400432449,1767549395230,566.21,0.00030136,120]
[400432450,1767549395276,500.0,0.00030136,120]
[400432451,1767549395477,566.21,0.00030136,120]
[400432452,1767549395521,500.0,0.00030136,120]
[400432453,1767549395723,566.21,0.00030136,120]
[400432454,1767549395761,500.0,0.00030136,120]
[400432455,1767549395839,527.78724144,0.00030136,120]
[400432456,1767549395969,566.21,0.00030136,120]
[400432457,1767549396027,500.0,0.00030136,120]
[400432458,1767549396208,566.21,0.00030136,120]
[400432459,1767549396239,500.0,0.00030136,120]
[400432460,1767549396457,566.21,0.00030136,120]
[400432461,1767549396493,219.29435475,0.00030136,120]
[400432462,1767549396715,566.21,0.00030136,120]
[400432463,1767549396955,566.21,0.00030136,120]
[400432464,1767549397235,566.21,0.00030136,120]
[400432465,1767549397551,566.21,0.00030136,120]
[400432466,1767549397722,407.0509901,9.856e-05,2]
[400432467,1767549397797,500.0,0.00030136,120]
[400432468,1767549397835,566.21,0.00030136,120]
[400432469,1767549397998,252.14368805,0.00030136,120]
[400432470,1767549398034,500.0,0.00030136,120]
[400432471,1767549398070,566.21,0.00030136,120]
[400432472,1767549398278,500.0,0.00030136,120]
[400432473,1767549398346,566.21,0.00030136,120]
[400432474,1767549398521,500.0,0.00030136,120]
[400432475,1767549398691,566.21,0.00030136,120]
[400432476,1767549398757,500.0,0.00030136,120]
[400432477,1767549398939,566.21,0.00030136,120]
[400432478,1767549399009,500.0,0.00030136,120]
[400432479,1767549399198,566.21,0.00030136,120]
[400432480,1767549399277,155.09684036,0.00030136,120]
[400432481,1767549399455,566.35079696,0.00030136,120]
[400432482,1767549399842,500.0,0.00030136,120]
[400432483,1767549400087,500.0,0.00030136,120]
[400432484,1767549400342,500.0,0.00030136,120]
[400432485,1767549400596,500.0,0.00030136,120]
[400432486,1767549400801,500.0,0.00030136,120]
[400432487,1767549401041,500.0,0.00030136,120]
[400432488,1767549401359,278.59416087,0.00030136,120]
[400432489,1767549401399,206.93056441,0.00030136,120]
[400432490,1767549401968,500.0,0.00030136,120]
[400432491,1767549402230,500.0,0.00030136,120]
[400432492,1767549402485,500.0,0.00030136,120]
[400432493,1767549402732,455.12650418,0.00030136,120]
[400432494,1767549402965,500.0,0.00030136,120]
[400432495,1767549402996,500.0,0.00030136,120]
[400432496,1767549403196,500.0,0.00030136,120]
[400432497,1767549403245,500.0,0.00030136,120]
[400432498,1767549403374,2783.54037088,9.53e-05,2]
[400432499,1767549403443,500.0,0.00030136,120]
[400432500,1767549403489,500.0,0.00030136,120]
[400432501,1767549403525,500.0,0.00030136,120]
[400432502,1767549403648,500.0,0.00030136,120]
[400432503,1767549403680,261.23480134,0.00030136,120]
[400432504,1767549403713,500.0,0.00030136,120]
[400432505,1767549403744,228.08024832,0.00030136,120]
[400432506,1767549403883,500.0,0.00030136,120]
[400432507,1767549403944,500.0,0.00030136,120]
[400432508,1767549404104,612.35018119,0.00030136,120]
[400432509,1767549404416,500.0,0.00030136,120]
[400432510,1767549404466,500.0,0.00030136,120]
[400432511,1767549404677,500.0,0.00030136,120]
[400432512,1767549405047,500.0,0.00030136,120]
[400432513,1767549405323,500.0,0.00030136,120]
[400432514,1767549405556,500.0,0.00030136,120]
[400432515,1767549405693,500.0,0.00030136,120]
[400432516,1767549405788,610.17381954,0.00030136,120]
[400432517,1767549405936,543.34577021,0.00030136,120]
[400432518,1767549407634,951.66,0.00030136,120]
[400432519,1767549407667,500.0,0.00030136,120]
[400432520,1767549407703,500.0,0.00030136,120]
[400432521,1767549407732,500.0,0.00030136,120]
[400432522,1767549407867,951.66,0.00030136,120]
[400432523,1767549407897,500.0,0.00030136,120]
[400432524,1767549407933,500.0,0.00030136,120]
[400432525,1767549407965,500.0,0.00030136,120]
[400432526,1767549408119,500.0,0.00030136,120]
[400432527,1767549408280,500.0,0.00030136,120]
[400432528,1767549408357,500.0,0.00030136,120]
[400432529,1767549408437,951.66,0.00030136,120]
[400432530,1767549408506,265.94851069,0.00030136,120]
[400432531,1767549408538,500.0,0.00030136,120]
[400432532,1767549408613,500.0,0.00030136,120]
[400432533,1767549408675,951.66,0.00030136,120]
[400432534,1767549408771,254.90233199,0.00030136,120]
[400432535,1767549408854,500.0,0.00030136,120]
[400432536,1767549408915,951.66,0.00030136,120]
[400432537,1767549409080,180.18467792,0.00030136,120]
[400432538,1767549409151,951.66,0.00030136,120]
[400432539,1767549409391,951.66,0.00030136,120]
[400432540,1767549409663,951.66,0.00030136,120]
[400432541,1767549409901,951.66,0.00030136,120]
[400432542,1767549410133,951.66,0.00030136,120]
[400432543,1767549410541,951.66,0.00030136,120]
[400432544,1767549410630,951.66,0.00030136,120]
[400432545,1767549410899,951.66,0.00030136,120]
[400432546,1767549411178,951.66,0.00030136,120]
[400432547,1767549411606,951.66,0.00030136,120]
[400432548,1767549412095,951.66,0.00030136,120]
[400432549,1767549412362,951.66,0.00030136,120]
[400432550,1767549412617,951.66,0.00030136,120]
[400432551,1767549412857,951.66,0.00030136,120]
[400432552,1767549413133,951.66,0.00030136,120]
[400432553,1767549413377,951.66,0.00030136,120]
[400432554,1767549413498,2524.79,0.00030136,120]
[400432555,1767549413614,951.66,0.00030136,120]
[400432556,1767549413721,2524.79,0.00030136,120]
[400432557,1767549413852,951.66,0.00030136,120]
[400432558,1767549413957,2524.79,0.00030136,120]
[400432559,1767549413991,1006.96,0.00030136,120]
[400432560,1767549414096,951.67572286,0.00030136,120]
[400432561,1767549414199,2524.79,0.00030136,120]
[400432562,1767549414230,1006.96,0.00030136,120]
[400432563,1767549414617,2524.79,0.00030136,120]
[400432564,1767549414653,1006.96,0.00030136,120]
[400432565,1767549414691,2524.79,0.00030136,120]
[400432566,1767549414721,1006.96,0.00030136,120]
[400432567,1767549414932,1006.96,0.00030136,120]
[400432568,1767549414967,2524.79,0.00030136,120]
[400432569,1767549415185,2524.79,0.00030136,120]
[400432570,1767549415220,500.0,0.00030136,120]
[400432571,1767549415256,1006.96,0.00030136,120]
[400432572,1767549415425,2524.79,0.00030136,120]
[400432573,1767549415465,500.0,0.00030136,120]
[400432574,1767549415505,1006.96,0.00030136,120]
[400432575,1767549415593,500.0,0.00030136,120]
[400432576,1767549415661,459.39908236,0.00030136,120]
[400432577,1767549415695,2524.79,0.00030136,120]
[400432578,1767549415751,500.0,0.00030136,120]
[400432579,1767549415882,545.85966868,0.00030136,120]
[400432580,1767549415917,2524.79,0.00030136,120]
[400432581,1767549415986,500.0,0.00030136,120]
[400432582,1767549416020,1006.96,0.00030136,120]
[400432583,1767549416223,500.0,0.00030136,120]
[400432584,1767549416259,500.0,0.00030136,120]
[400432585,1767549416291,1006.96,0.00030136,120]
[400432586,1767549416327,2524.79,0.00030136,120]
[400432587,1767549416461,500.0,0.00030136,120]
[400432588,1767549416497,500.0,0.00030136,120]
[400432589,1767549416529,1006.96,0.00030136,120]
[400432590,1767549416564,2524.79,0.00030136,120]
[400432591,1767549416682,357.81300572,0.00030136,120]
[400432592,1767549416720,500.0,0.00030136,120]
[400432593,1767549416753,1006.96,0.00030136,120]
[400432594,1767549416826,2524.79,0.00030136,120]
[400432595,1767549416945,500.0,0.00030136,120]
[400432596,1767549416982,1006.96,0.00030136,120]
[400432597,1767549417075,2524.79,0.00030136,120]
[400432598,1767549417187,500.0,0.00030136,120]
[400432599,1767549417220,1006.96,0.00030136,120]
[400432600,1767549417333,2524.79,0.00030136,120]
[400432601,1767549417434,500.0,0.00030136,120]
[400432602,1767549417469,1006.96,0.00030136,120]
[400432603,1767549417557,2524.79,0.00030136,120]
[400432604,1767549417671,259.12847322,0.00030136,120]
[400432605,1767549417704,1006.96,0.00030136,120]
[400432606,1767549417778,2524.79,0.00030136,120]
[400432607,1767549418039,1006.96,0.00030136,120]
[400432608,1767549418072,2524.79,0.00030136,120]
[400432609,1767549418156,1006.96,0.00030136,120]
[400432610,1767549418283,2524.79,0.00030136,120]
[400432611,1767549418395,1006.96,0.00030136,120]
[400432612,1767549418638,1006.96,0.00030136,120]
[400432613,1767549418877,1006.96,0.00030136,120]
[400432614,1767549418910,2524.79,0.00030136,120]
[400432615,1767549419127,1006.96,0.00030136,120]
[400432616,1767549419159,2524.79,0.00030136,120]
[400432617,1767549419368,1006.96,0.00030136,120]
[400432618,1767549419411,2524.79,0.00030136,120]
[400432619,1767549419455,500.0,0.00030136,120]
[400432620,1767549419602,1006.96,0.00030136,120]
[400432621,1767549419644,2524.86865296,0.00030136,120]
[400432622,1767549419690,500.0,0.00030136,120]
[400432623,1767549419840,1007.11070712,0.00030136,120]
[400432624,1767549419968,550.00955238,0.00030136,120]
[400432626,1767549421824,500.0,0.00030136,120]
[400432627,1767549422071,321.6441823,0.00030136,120]
[400432628,1767549422993,611.31,0.00030136,120]
[400432629,1767549423238,611.31,0.00030136,120]
[400432630,1767549423487,611.31,0.00030136,120]
[400432631,1767549423719,611.31,0.00030136,120]
[400432632,1767549423862,533.39936658,0.00030136,120]
[400432633,1767549423895,500.0,0.00030136,120]
[400432634,1767549423981,611.31,0.00030136,120]
[400432635,1767549424126,344.81248336,0.00030136,120]